Cogmind - Beta 16.1 @@@ ROGUE MODE // 2026.04.22 @ 23:42:53 Player: camuhron Result: Destroyed by G-47 Trooper with Particle Gun Performance ------------- Evolutions (0) 0 Regions Visited (1) 200 Robots Destroyed (2) 10 Value Destroyed (50) 50 Prototype IDs (0) 0 Alien Tech Used (0) 0 Bonus (0) 0 TOTAL SCORE: 260 Bonus ------- None Cogmind --------- Core Integrity 0/250 Matter 300/300 Energy 98/100 System Corruption 0% Temperature Cool (15) Movement Core (50) Location -10/Materials Parts ------- > --- POWER (1) -------- (None) > --- PROPULSION (2) --- (None) > --- UTILITY (2) ------ Visual Processing Unit > --- WEAPON (2) ------- (None) > --- INVENTORY (5) ---- Small Storage Unit Peak State ------------ > --- POWER ------------ Ion Engine > --- PROPULSION ------- Light Treads Light Treads > --- UTILITY ---------- Visual Processing Unit > --- WEAPON ----------- Medium Laser Small Laser > --- INVENTORY -------- Small Storage Unit [Rating: 7] Favorites ----------- Power Ion Engine Engine Ion Engine Propulsion Light Treads Treads Light Treads Utility Visual Processing Unit Processor Visual Processing Unit Weapon Small Laser Energy Gun Small Laser Build | -11 -10 ------- Run | Yrd Mat Slots Evolved . | . . Power . | . . Propulsion . | . . Utility . | . . Weapon . | . . Parts Attached 6 | 5 1 Power 1 | 1 . Engine 1 | 1 . Core . | . . Reactor . | . . Propulsion 2 | 2 . Treads 2 | 2 . Leg . | . . Wheel . | . . Hover . | . . Flight . | . . Utility 1 | . 1 Device . | . . Storage . | . . Processor 1 | . 1 Hackware . | . . Protection . | . . Artifact . | . . Weapon 2 | 2 . Energy Gun 2 | 2 . Energy Cannon . | . . Ballistic Gun . | . . Ballistic Cannon . | . . Launcher . | . . Special Weapon . | . . Impact Weapon . | . . Slashing Weapon . | . . Piercing Weapon . | . . Special Melee Weapon . | . . Unidentified Prototypes . | . . Parts Lost 5 | . 5 Power 1 | . 1 Propulsion 2 | . 2 Utility . | . . Weapon 2 | . 2 Highest Loss Streak 5 | . 5 To Critical Strikes . | . . Average Backups 1 | 1 1 Power . | . . Propulsion . | . . Utility . | . 1 Weapon . | . . Tool/Special . | . . Unused Backups 1 | . 1 Power . | . . Propulsion . | . . Utility 1 | . 1 Weapon . | . . Tool/Special . | . . Average Slot Usage (%) 70 | . 70 Engine 12 | . 12 Treads 24 | . 24 Processor 7 | . 7 Energy Gun 24 | . 24 Peak Build Rating 7 | 5 7 Average Rating 4 | 3 5 On Entrance 2 | . 5 Avg Prop Armor Cover (%) . | . . Naked Turns . | . . Heaviest Build 8 | 8 8 Greatest Support 40 | 40 40 Greatest Overweight (x) . | . . Average Overweight (x) . | . . Largest Inventory Capacity 5 | 5 5 Average Capacity 5 | 5 5 Most Carried 2 | 2 1 Average Carried 1 | 1 1 Final Capacity 5 | 5 5 Final Carried 1 | 1 1 Class Distribution -------------------- 100% | Mutant Dominant Class ---------------- Mutant | -10/Materials Resources | -11 -10 ----------- Run | Yrd Mat Matter Collected 231 | 217 14 Remotely . | . . Salvage Created 53 | . 53 Parts 4 | . 4 Haulers Intercepted . | . . Recyclers Shooed . | . . Parts Field Recycled . | . . Retrieved Matter . | . . Parts Self-Destructed . | . . Prevented . | . . Parts Restored . | . . Kills | -11 -10 ------- Run | Yrd Mat Combat Hostiles Destroyed 1 | . 1 Melee 1 | . 1 Classes Destroyed 2 | . 2 Watcher 1 | . 1 Grunt 1 | . 1 Best Kill Streak 1 | . 1 Combat Bots Only 1 | . 1 Max Kills in Single Turn 1 | . 1 Gunslinging . | . . Exploded . | . . Melee 1 | . 1 Uniques/NPCs Destroyed . | . . Combat | -11 -10 -------- Run | Yrd Mat Hostile Shots Fired 106 | . 106 Missed 30 | . 30 Hits 76 | . 76 Projectile 76 | . 76 Critical Strikes 1 | . 1 Damage Taken 780 | 3 777 Core 260 | 3 257 Absorbed by Shields . | . . Core Remaining (%) 98 | 98 . Volleys Fired 12 | . 12 Largest 2 | . 2 Hottest 90 | . 90 Shots Fired 19 | . 19 Gun 19 | . 19 Cannon . | . . Launcher . | . . Special . | . . Kinetic . | . . Thermal 19 | . 19 Explosive . | . . Electromagnetic . | . . Robot Hit Streak 2 | . 2 Robot Miss Streak 3 | . 3 Penetration Max . | . . Secondary Targets . | . . Shots Hit Robots 8 | . 8 Core Hits 6 | 1 5 Critical Kills . | . . Critical Parts Destroyed . | . . Critical Strikes . | . . Melee Attacks . | . . Impact . | . . Slashing . | . . Piercing . | . . Sneak Attacks . | . . Combat Hostiles . | . . Follow-up Attacks . | . . Damage Inflicted 128 | 7 121 Guns 104 | . 104 Cannons . | . . Explosions . | . . Melee . | . . Ramming 24 | 7 17 Kinetic . | . . Thermal 104 | . 104 Explosive . | . . Electromagnetic . | . . Impact . | . . Slashing . | . . Piercing . | . . Highest Corruption . | . . Average Corruption . | . . Corruption Purged . | . . Corruption Blocked . | . . Overload Shots . | . . Overflow Damage . | . . Projectiles . | . . Explosions . | . . Melee . | . . Knockbacks . | . . Impact . | . . Kinetic . | . . Secondary . | . . Self-Inflicted Damage 11 | 3 8 Shots . | . . Rammed 5 | 1 4 Targets Rammed 5 | 1 4 Kicked . | . . Crushed . | . . Highest Temperature 197 | . 197 Average Temperature 82 | . 82 Received Heat Transfer 255 | . 255 Siege Activations . | . . Martial Activations . | . . Shielding Activations . | . . Robots Disrupted . | . . Combat Hostiles . | . . Robots Corrupted . | . . Combat Hostiles . | . . Parts Fried . | . . Impact Corruptions . | . . Robots Melted . | . . Combat Hostiles . | . . Parts Melted . | . . Heat Transferred 297 | . 297 Parts Sabotaged . | . . Parts Stolen . | . . Parts Stripped . | . . Power Chain Reactions . | . . Alert | -11 -10 ------- Run | Yrd Mat Maximum Alert Level . | . . Low Security (%) 100 | 100 100 Level 1 . | . . Level 2 . | . . Level 3 . | . . Level 4 . | . . Level 5 . | . . High Security . | . . Max Security . | . . Peak Influence 30 | . 30 Initial . | . . Average 3 | . 7 Influence Increases 57 | . 57 Destroy 0b10 Robot/C 20 | . 20 Destroy 0b10 Robot/NC 5 | . 5 Destroy Leader 2 | . 2 Lose Combat Pursuer 30 | . 30 Influence Decreases 37 | . 37 Time Decay 37 | . 37 Squads Dispatched 1 | . 1 Investigation . | . . Extermination . | . . Reinforcement 1 | . 1 Assault . | . . Garrison . | . . Intercept . | . . Searches Triggered . | . . Construction Impeded . | . . Haulers Reinforced . | . . Active Scanning Responses . | . . Cargo Convoy Interrupts . | . . Stealth | -11 -10 --------- Run | Yrd Mat Distress Signals 1 | . 1 Communications Jammed . | . . Distress Signals . | . . Times Spotted 8 | . 8 Peak Tracking Total 6 | . 6 Tactical Retreats 1 | . 1 Traps | -11 -10 ------- Run | Yrd Mat Traps Triggered . | . . Indirectly . | . . Trap Hack Attempts . | . . Triggered . | . . Disarmed . | . . Reprogrammed . | . . Reused . | . . Traps Extracted . | . . Installed . | . . Triggered . | . . Machines | -11 -10 ---------- Run | Yrd Mat Machines Disabled . | . . Max in Single Turn . | . . Machines Repaired . | . . Machines Dismantled . | . . Machines Sabotaged . | . . Overloaded Fab Kills . | . . Hacking | -11 -10 --------- Run | Yrd Mat Machines Accessed . | . . Terminals . | . . Fabricators . | . . Repair Stations . | . . Recycling Units . | . . Scanalyzers . | . . Garrison Access . | . . Total Hacks . | . . Successful . | . . Failed . | . . Catastrophic . | . . Database Lockouts . | . . Manual . | . . Terminals . | . . Fabricators . | . . Repair Stations . | . . Recycling Units . | . . Scanalyzers . | . . Garrison Access . | . . Terminal Hacks . | . . Fabricator Hacks . | . . Repair Station Hacks . | . . Recycling Unit Hacks . | . . Scanalyzer . | . . Garrison Access Hacks . | . . Unauthorized Hacks . | . . Terminals . | . . Fabricators . | . . Repair Stations . | . . Recycling Units . | . . Scanalyzers . | . . Garrison Access . | . . Data Cores Recovered . | . . Used . | . . Hacking Detections . | . . Full Trace Events . | . . Feedback Events . | . . Feedback Blocked . | . . Robot Schematics Acquired . | . . Robots Built . | . . Authchips . | . . Time . | . . Total Robot Build Rating . | . . Part Schematics Acquired . | . . Parts Built . | . . Authchips . | . . Time . | . . Total Part Build Rating . | . . Part Studies Acquired . | . . Parts Repaired . | . . Time . | . . Parts Recycled . | . . Recycled Matter . | . . Retrieved Matter . | . . Retrieved Components . | . . Parts Scanalyzed . | . . Part Schematics Acquired . | . . Parts Damaged . | . . Bothacking | -11 -10 ------------ Run | Yrd Mat Used RIF Installer . | . . Robots Hacked . | . . Non-combat . | . . Combat . | . . Robot Hacks Applied . | . . Relay Couplers Released . | . . Fabnet Peak Effective % . | . . Robots Rewired . | . . Allies Hacked . | . . Hacks Repelled . | . . Allies | -11 -10 -------- Run | Yrd Mat Total Allies . | . . Largest Group . | . . Highest-Rated Group . | . . Highest-Rated Ally . | . . Total Orders . | . . Ally Attacks . | . . Total Damage . | . . Kills . | . . Allies Corrupted . | . . Allies Melted . | . . Intel | -11 -10 ------- Run | Yrd Mat Active Infowar (turns) 97 | . 97 Optics 97 | . 97 Robot Analysis Total . | . . Derelict Logs Recovered . | . . Drone Launches . | . . Drone Recoveries . | . . Exploration | -11 -10 ------------- Run | Yrd Mat Turns Passed 360 | 191 169 Spaces Moved 225 | 136 89 Core 41 | 32 9 Treads 184 | 104 80 Legs . | . . Wheels . | . . Hover . | . . Flight . | . . Fastest Speed 50 | 50 50 Average Speed 139 | 134 148 Slowest Speed 160 | 160 160 Overloaded Moves . | . . Propulsion Burnouts . | . . Robots Hopped . | . . Potential Cave-ins . | . . Cave-ins Triggered . | . . Exploration Rate (%) 8 | 6 10 Regions Visited 1 Branch Regions . Pre-discovered Areas . | . . Known Exits Taken . | . . Unknown Exits Taken 1 | 1 . Scrap Searched . | . . Spaces Dug . | . . Terrain Destroyed . | . . Melee . | . . Projectile . | . . AOE . | . . Terrain Rammed . | . . Walls Destroyed . | . . Machines Disabled . | . . Actions | -11 -10 --------- Run | Yrd Mat Total 249 | 143 106 Wait . | . . Move 224 | 135 89 Hop . | . . Pick Up 2 | 2 . Fast Attach 5 | 4 1 Attach 1 | 1 . Detach . | . . Swap . | . . Drop . | . . Fire 12 | . 12 Melee . | . . Ram 5 | 1 4 Kick . | . . Crush . | . . Escape Stasis . | . . Rewire . | . . Trap . | . . Miscellaneous . | . . Route ------- -11/Scrapyard -10/Materials History --------- Turn | Location | Event 39 | -11/Scrapyard | Discovered new exit (range 15) 192 | -11/Scrapyard | Entered Materials 304 | -10/Materials | Build established: Mutant 345 | -10/Materials | Core integrity fell below 50% 355 | -10/Materials | Core integrity fell below 20% 361 | -10/Materials | Destroyed by G-47 Trooper with Particle Gun Last Messages --------------- U-05 Engineer lays Concrete. S-10 Pest destroyed. M-13 Machinist repairs G-47 Trooper. R-06 Scavenger collects Lgt. Ion Engine. Sml. Laser destroyed. Lgt. Treads destroyed. Ion Engine destroyed. T-07 Excavator is excavating. Destroyed Flight Unit. Med. Laser destroyed. T-07 Excavator is excavating. Lgt. Treads destroyed. Slammed into S-10 Pest. Slammed into G-34 Mercenary. T-07 Excavator is excavating. Slammed into G-34 Mercenary. G-34 Mercenary destroyed. M-13 Machinist fits Backup Propulsion I on S-10 Pest. T-07 Excavator is excavating. Map ----- +----------------------------------------------------+ | ?????????????????????????????????????????????????? | | ????????????????????? ??????????????????????????? | | ???????????????????? ??????????????????????????? | | ??????????????????? ??????????????????????????? | | ???????????????????! ??????????????????????????? | | ??????????????????? ??????????????????????????? | | ???????????????????? """"??????????????????????? | | ???????????????????? """"??????????????????????? | | ???????????????????? """"??????????????????????? | | ????????????????????? ???????????????????????? | | ????????????????????? ???????????????????????? | | ??????????????????##?#% #???????????????????????? | | ??????????????????? # ###?????????????????????? | | ???????????????????? # # ??????????????????????? | | ?????????????????????+ ???????????????????????? | | ?????????????????????# #???????????????????????? | | ?????????????????????# #???????????????????????? | | ?????????????????????# #???????????????????????? | | ?????????????????????# u #???????????????????????? | | ?????????????????????# #???????????????????????? | | ?????????????????????# #???????????????????????? | | ?????????????????????# u #???????????????????????? | | ?????????????????????# #???????????????????????? | | ?????????????????????# r####????????????????????? | | ?????????????????????# u #????????????????????? | | ?????????????????????# s@ #????????????????????? | | ???????????????????### g*% #????????????????????? | | ???????????????????# # !%g ##???????????????????? | | ???????????????# # #???????????????????? | | ???????????????## t # # #???????????????????? | | ????????????????# # # #???????????????????? | | ????????????????####?# ## ###??????????????????? | | ?????????????????????# ## T#??????????????????? | | ?????????????????????# ## ""#??????????????????? | | ?????????????????????# ## ###??????????????????? | | ?????????????????????# ## #????????????????????? | | ?????????????????????# ## #????????????????????? | | ?????????????????????###### #????????????????????? | | ??????????????#+########### #????????????????????? | | ??????????????# #????????????????????? | | ??????????????# #????????????????????? | | ??????????????# #????????????????????? | | ??????????????# #????????????????????? | | ??????????????###############????????????????????? | | ?????????????????????????????????????????????????? | | ?????????????????????????????????????????????????? | | ?????????????????????????????????????????????????? | | | | | | | +----------------------------------------------------+ Best States ------------- Heat Dissipation 25 Energy Generation 10 Energy Capacity 250 Matter Stores 300 Matter Capacity 300 Sight Range 18 Terrain Scan Density 10 Evasion (%) 50 Recoil Reduction 2 Item Schematics ----------------- None Robot Schematics ------------------ None Fabricated ------------ Nothing Repaired ---------- Nothing Studied --------- None Alien Tech Used ----------------- None Achievements -------------- DATA ERROR: Steam Global Achievement% For Emergencies Only Spot Them First Challenges ------------ None Game ------ Seed StorageCompositeKatana Manual? 0 Play Time 00:04:42 Cumulative 4.6 hours Start 2026.04.22 @ 23:38:57 End 2026.04.22 @ 23:42:53 Sessions 1 Manual Loads 0 Difficulty Rogue Special Mode None Game No. 13 Rogue 13 Adventurer 0 Explorer 0 Win Type - Total 0 Types 0/0/0/0/0/0/0/0/0/0 Lore% 2 Gallery% 8 Achievement% 5 Wizard Run 0 Options --------- Layout 1 ASCII 0 Keyboard 1 Movement Arrows Keybinds 0 Fullscreen 1 Font 24/Smallcaps Map View 50x35 Zoom Use 0% Tactical HUD 0 Map Filters NONE Filters NONE Steam 1 RUN: 456ed699-5cc5-4d01-80b2-531286fd91bc